fUSD/lending_fUSD_20260128
["ID","MTS","AMOUNT","RATE_DAILY","PERIOD"]
[403850350,1769597440149,-500.0,0.00016438,2]
[403850351,1769597440159,-500.0,0.00016438,2]
[403850352,1769597440169,-500.0,0.00016438,2]
[403850353,1769597440180,-500.0,0.00016438,2]
[403850354,1769597440191,-500.0,0.00016438,2]
[403850355,1769597440201,-500.0,0.00016438,2]
[403850356,1769597440211,-500.0,0.00016438,2]
[403850357,1769597440222,-500.0,0.00016438,2]
[403850358,1769597440232,-154.15147269,0.00016438,2]
[403850359,1769597440242,-500.0,0.00016438,2]
[403850360,1769597440252,-500.0,0.00016438,2]
[403850361,1769597440262,-500.0,0.00016438,2]
[403850362,1769597440272,-500.0,0.00016438,2]
[403850364,1769597440283,-500.0,0.00016438,2]
[403850366,1769597440294,-500.0,0.00016438,2]
[403850367,1769597440304,-500.0,0.00016438,2]
[403850368,1769597440314,-500.0,0.00016438,2]
[403850369,1769597440324,-500.0,0.00016438,2]
[403850370,1769597440334,-500.0,0.00016438,2]
[403850371,1769597440345,-500.0,0.00016438,2]
[403850372,1769597440356,-500.0,0.00016438,2]
[403850373,1769597440368,-500.0,0.00016438,2]
[403850374,1769597440380,-500.0,0.00016438,2]
[403850375,1769597440390,-500.0,0.00016438,2]
[403850376,1769597440400,-500.0,0.00016438,2]
[403850377,1769597440410,-350.0,0.00016438,2]
[403850378,1769597440420,-500.0,0.00016438,2]
[403850379,1769597440431,-500.0,0.00016438,2]
[403850380,1769597440441,-500.0,0.00016438,2]
[403850381,1769597440452,-500.0,0.00016438,2]
[403850382,1769597440462,-500.0,0.00016438,2]
[403850383,1769597440479,-500.0,0.00016438,2]
[403850384,1769597440488,-500.0,0.00016438,2]
[403850385,1769597440499,-500.0,0.00016438,2]
[403850386,1769597440510,-500.0,0.00016438,2]
[403850387,1769597440520,-500.0,0.00016438,2]
[403850388,1769597440531,-500.0,0.00016438,2]
[403850431,1769597441524,-500.0,0.00016438,2]
[403850432,1769597441568,-500.0,0.00016438,2]
[403850433,1769597441596,-500.0,0.00016438,2]
[403850434,1769597441608,-500.0,0.00016438,2]
[403850435,1769597441618,-500.0,0.00016438,2]
[403850436,1769597441629,-163.21,0.00016512,2]
[403850437,1769597441640,-11469.19567886,0.00016585,2]
[403850438,1769597441651,-1190.69,0.00016635,2]
[403850439,1769597441662,-500.0,0.00016647,2]
[403850440,1769597441672,-510.0,0.00016656,2]
[403850441,1769597441682,-1000.0,0.00016669,2]
[403850442,1769597441691,-2500.0,0.00016669,2]
[403850443,1769597441701,-24121.3366,0.00016671,2]
[403850444,1769597441710,-184.1741511,0.00016685,2]
[403850445,1769597441720,-800.0,0.000167,6]
[403850446,1769597441729,-11364.24453284,0.000167,2]
[403850447,1769597441738,-250.0,0.00016752,2]
[403850448,1769597441748,-500.0,0.00016752,2]
[403850449,1769597441758,-192.59053623,0.00016761,2]
[403850450,1769597441769,-151.0,0.00016768,2]
[403850451,1769597441779,-151.0,0.00016768,2]
[403850452,1769597441788,-544.60815205,0.00016768,2]
[403850453,1769597441797,-500.0,0.00016768,2]
[403850454,1769597441806,-1796.94,0.00016768,2]
[403850455,1769597441816,-1796.94,0.00016768,2]
[403850456,1769597441827,-1796.94,0.00016768,2]
[403850457,1769597441839,-1796.94,0.00016768,2]
[403850458,1769597441849,-1796.94,0.00016768,2]
[403850459,1769597441858,-1796.94,0.00016768,2]
[403850460,1769597441868,-1796.94,0.00016768,2]
[403850461,1769597441878,-1796.94,0.00016768,2]
[403850462,1769597441888,-1796.94,0.00016768,2]
[403850463,1769597441898,-1796.94,0.00016768,2]
[403850464,1769597441907,-1796.94,0.00016768,2]
[403850465,1769597441916,-1796.94,0.00016768,2]
[403850466,1769597441926,-1796.94,0.00016768,2]
[403850467,1769597441935,-1796.94,0.00016768,2]
[403850468,1769597441944,-1796.94,0.00016768,2]
[403850469,1769597441954,-1796.94,0.00016768,2]
[403850470,1769597441963,-1796.94,0.00016768,2]
[403850471,1769597441973,-1796.94,0.00016768,2]
[403850472,1769597441982,-1796.94,0.00016768,2]
[403850473,1769597441991,-1796.94,0.00016768,2]
[403850474,1769597442001,-1796.94,0.00016768,2]
[403850475,1769597442010,-1796.94,0.00016768,2]
[403850476,1769597442020,-1796.94,0.00016768,2]
[403850477,1769597442029,-1797.12,0.00016768,2]
[403850478,1769597442039,-110015.63730676,0.00016769,2]
[403850479,1769597442048,-154.38599815,0.0001677,2]
[403850480,1769597442058,-598.98,0.0001677,2]
[403850481,1769597442067,-598.98,0.0001677,2]
[403850482,1769597442077,-598.98,0.0001677,2]
[403850483,1769597442086,-598.98,0.0001677,2]
[403850484,1769597442096,-598.98,0.0001677,2]
[403850485,1769597442106,-598.98,0.0001677,2]
[403850486,1769597442116,-598.98,0.0001677,2]
[403850487,1769597442126,-598.98,0.0001677,2]
[403850488,1769597442135,-598.98,0.0001677,2]
[403850489,1769597442145,-598.98,0.0001677,2]
[403850490,1769597442154,-598.98,0.0001677,2]
[403850491,1769597442163,-598.98,0.0001677,2]
[403850492,1769597442173,-598.98,0.0001677,2]
[403850493,1769597442182,-598.98,0.0001677,2]
[403850494,1769597442192,-598.98,0.0001677,2]
[403850495,1769597442201,-598.98,0.0001677,2]
[403850496,1769597442211,-598.98,0.0001677,2]
[403850497,1769597442220,-598.98,0.0001677,2]
[403850498,1769597442229,-598.98,0.0001677,2]
[403850499,1769597442239,-598.98,0.0001677,2]
[403850500,1769597442248,-598.98,0.0001677,2]
[403850501,1769597442257,-598.98,0.0001677,2]
[403850502,1769597442267,-598.98,0.0001677,2]
[403850503,1769597442277,-599.1414044,0.0001677,2]
[403850504,1769597442287,-578.39080156,0.0001677,2]
[403850505,1769597442297,-483304.81097594,0.00016771,2]
[403850506,1769597442466,-436.48418608,0.00015539,2]
[403850507,1769597442478,-11.08904032,0.00015539,2]
[403850534,1769597446255,-488.91095968,0.00015539,2]
[403850535,1769597446265,-1936.37938735,0.00016771,2]
[403850536,1769597446361,-1092.59649119,0.00016771,2]
[403850537,1769597446374,-964.8,0.00016771,2]
[403850538,1769597446385,-891.93999999,0.00016771,2]
[403850539,1769597446397,-907.73999999,0.00016771,2]
[403850540,1769597446414,-546.09018358,0.00016771,2]
[403850547,1769598549115,-166.66,0.00014804,2]
[403850548,1769598549136,-2500.0,0.00014959,2]
[403850549,1769598549157,-153.26924584,0.00014998,2]
[403850550,1769598549179,-166.66,0.00015115,2]
[403850551,1769598549199,-150.0,0.00015339,2]
[403850552,1769598549218,-1852.42,0.00015369,2]
[403850553,1769598549239,-166.66,0.00015427,2]
[403850554,1769598549259,-148.22207416,0.00015739,2]
[403850564,1769598631406,-18.43792584,0.00015739,2]
[403850565,1769598631416,-166.66,0.00015764,2]
[403850566,1769598631430,-374.15126286,0.0001578,2]
[403850567,1769598631442,-544.02,0.0001578,2]
[403850568,1769598631453,-81.82873714,0.0001578,2]
[403850569,1769598631463,-150.00634647,0.00015914,2]
[403850570,1769598631473,-151.0,0.00016049,2]
[403850571,1769598631483,-54.60168139,0.00016049,2]
[403850572,1769598631495,-96.39831861,0.00016049,2]
[403850573,1769598631504,-151.0,0.0001605,2]
[403850574,1769598631514,-151.0,0.0001605,2]
[403850575,1769598631524,-166.66,0.0001605,2]
[403850576,1769598631534,-300.0,0.00016063,2]
[403850577,1769598631543,-306.09555515,0.00016064,2]
[403850578,1769598631559,-844.90444485,0.00016064,2]
[403850579,1769598631568,-1411.5357328,0.00016065,2]
[403850580,1769598631580,-1199.16049217,0.00016065,2]
[403850581,1769598631601,-729.05658628,0.00016065,2]
[403850582,1769598631612,-1727.40440094,0.00016065,2]
[403850583,1769598631623,-1181.50345571,0.00016065,2]
[403850584,1769598631638,-2794.5693321,0.00016065,2]
[403850585,1769598631648,-151.0,0.00016067,2]
[403850586,1769598631658,-61.5906357,0.00016086,2]
[403850606,1769598637853,-1020.29583807,0.00015987,2]
[403850607,1769598637890,-821.77889273,0.00015987,2]
[403850608,1769598637900,-772104.48938782,0.00015987,2]
[403850609,1769598637913,-11251.39221102,0.00015987,2]
[403850610,1769598639514,-383.4275025,0.00015987,2]
[403850611,1769598639567,-7633.13592568,0.00015987,2]
[403850612,1769598639689,-321212.4218085,0.00015987,2]
[403850613,1769598639799,-1464.44502977,0.00015987,2]
[403850614,1769598639810,-1819.1209591,0.00015987,2]
[403850623,1769598642889,-599.66549608,0.00015987,2]
[403850634,1769598645469,-632.35968347,0.00015987,2]
[403850636,1769598725275,7291.40307806,0.00015,9]
[403850637,1769599001638,142.34195505,0.00011833,2]
[403850638,1769599001660,20.86804495,0.00011833,2]
[403850639,1769599147602,5532.0,0.000155,3]
[403850640,1769599271386,5532.0,0.000155,5]
[403850642,1769599429741,2995.12684399,0.000155,5]
[403850643,1769599429765,198.3645195,0.000155,5]
[403850665,1769599831548,-1509.48,0.00014658,2]
[403850666,1769599831558,-271.0,0.00014658,2]
[403850667,1769599831567,-2247.84,0.00014679,2]
[403850668,1769599831655,-252.16,0.00014679,2]
[403850669,1769599831665,-94.62075065,0.000147,2]
[403850683,1769599837573,-695.11,0.00014232,2]
[403850684,1769599837584,-114.73924935,0.000147,2]
[403850685,1769599837605,-2362.71225703,0.00014707,2]
[403850686,1769599837622,-1200.0,0.00014719,2]
[403850687,1769599837633,-150.0,0.00014719,2]
[403850688,1769599837642,-197.64060306,0.0001472,2]
[403850689,1769599837652,-500.0,0.0001472,2]
[403850690,1769599837661,-500.0,0.0001472,2]
[403850691,1769599837671,-394.96008767,0.0001472,2]
[403850692,1769599837686,-105.03991233,0.0001472,2]
[403850693,1769599837696,-500.0,0.0001472,2]
[403850694,1769599837705,-500.0,0.0001472,2]
[403850695,1769599837715,-500.0,0.0001472,2]
[403850696,1769599837724,-500.0,0.0001472,2]
[403850697,1769599837734,-500.0,0.0001472,2]
[403850698,1769599837743,-500.0,0.0001472,2]
[403850699,1769599837752,-500.0,0.0001472,2]
[403850700,1769599837762,-500.0,0.0001472,2]
[403850701,1769599837777,-500.0,0.0001472,2]
[403850702,1769599837787,-500.0,0.0001472,2]
[403850703,1769599837796,-500.0,0.0001472,2]
[403850704,1769599837807,-500.0,0.0001472,2]
[403850705,1769599837816,-500.0,0.0001472,2]
[403850706,1769599837826,-500.0,0.0001472,2]
[403850707,1769599837835,-500.0,0.0001472,2]
[403850708,1769599837845,-612.0028307,0.0001472,2]
[403850709,1769599837855,-500.0,0.0001472,2]
[403850710,1769599837865,-500.0,0.0001472,2]
[403850711,1769599837875,-500.0,0.0001472,2]
[403850712,1769599837885,-500.0,0.0001472,2]
[403850713,1769599837895,-500.0,0.0001472,2]
[403850715,1769599837904,-500.0,0.0001472,2]
[403850717,1769599837914,-500.0,0.0001472,2]
[403850718,1769599837924,-500.0,0.0001472,2]
[403850720,1769599837933,-500.0,0.0001472,2]
[403850721,1769599837943,-500.0,0.0001472,2]
[403850722,1769599837952,-500.0,0.0001472,2]
[403850723,1769599837961,-500.0,0.0001472,2]
[403850724,1769599837971,-500.0,0.0001472,2]
[403850725,1769599837980,-500.0,0.0001472,2]
[403850726,1769599837990,-500.0,0.0001472,2]
[403850727,1769599837999,-300.0,0.0001472,2]
[403850728,1769599838013,-500.0,0.0001472,2]
[403850729,1769599838023,-500.0,0.0001472,2]
[403850730,1769599838033,-383.96365831,0.0001472,2]
[403850731,1769599838050,-116.03634169,0.0001472,2]
[403850732,1769599838060,-1225.66139088,0.00014721,2]
[403850733,1769599838072,-1260.0,0.00014721,2]
[403850734,1769599838083,-887.59089991,0.00014721,2]
[403850735,1769599838094,-496.5,0.00014721,2]
[403850736,1769599838106,-8460.0,0.00014721,2]
[403850737,1769599838119,-364.52770921,0.00014721,2]
[403850738,1769599838128,-200.0,0.00014737,2]
[403850739,1769599838138,-200.0,0.00014747,2]
[403850740,1769599838148,-2280.75,0.00014752,2]
[403850741,1769599838159,-163.21,0.00014791,2]
[403850742,1769599838169,-500.0,0.00014821,2]
[403850743,1769599838178,-3079.06,0.00014821,2]
[403850744,1769599838188,-6812.99,0.00014868,2]
[403850745,1769599838198,-500.0,0.00015095,2]
[403850746,1769599838207,-878.0,0.00015207,2]
[403850747,1769599838217,-322.6107,0.00015249,2]
[403850748,1769599838227,-174.61919141,0.00015249,2]
[403850749,1769599838236,-599.60298507,0.00015249,2]
[403850750,1769599838246,-209.40437684,0.00015249,2]
[403850751,1769599838256,-304.0,0.00015252,2]
[403850752,1769599838267,-441.0,0.00015274,2]
[403850753,1769599838277,-217.15233878,0.00015304,2]
[403850754,1769599838287,-225.18697532,0.00015359,2]
[403850755,1769599838296,-500.0,0.00015368,2]
[403850756,1769599838306,-184.1741511,0.00015369,2]
[403850757,1769599838315,-5634.55755317,0.00015369,2]
[403850758,1769599838325,-11402.16203283,0.00015369,2]
[403850759,1769599838335,-599.96498292,0.00015369,2]
[403850760,1769599838344,-1509.48,0.00015391,2]
[403850761,1769599838354,-233.51889341,0.00015414,2]
[403850762,1769599838368,-192.59053623,0.00015437,2]
[403850763,1769599838381,-324.41,0.00015437,2]
[403850764,1769599838391,-324.41,0.00015437,2]
[403850765,1769599838402,-151.0,0.00015444,2]
[403850766,1769599838412,-151.0,0.00015444,2]
[403850767,1769599838423,-151.0,0.00015444,2]
[403850768,1769599838433,-484.45140032,0.00015446,2]
[403850769,1769599838444,-290.35814515,0.00015446,2]
[403850770,1769599838455,-500.0,0.00015446,2]
[403850771,1769599838465,-500.0,0.00015446,2]
[403850772,1769599838475,-394.2631977,0.00015446,2]
[403850773,1769599838485,-500.0,0.00015446,2]
[403850774,1769599838504,-289.52803122,0.00015446,2]
[403850775,1769599838521,-14244.55793614,0.00015447,2]
[403850776,1769599838547,-340871.50526897,0.00015447,2]
[403850777,1769599838560,-500.0,0.00015447,2]
[403850778,1769599838571,-587.00690597,0.00015447,2]
[403850780,1769599839808,-1392.10538075,0.00015447,2]
[403850781,1769599840021,-700.08755209,0.00015447,2]
[403850782,1769599840034,-412.8989822,0.00015447,2]
[403850798,1769599842825,-16852.17806412,0.00015447,2]
[403850799,1769599843115,-1.06694726,0.00015447,2]
[403850827,1769599845870,-300.23409272,0.00015447,2]
[403850841,1769600142310,-560.58682891,0.00014538,2]
[403850842,1769600142415,-691.5254278,0.00014538,2]
[403850846,1769600454544,5532.0,0.000109,5]
[403850847,1769600454803,5532.0,0.000105,3]
[403850848,1769600455068,9979.14195505,0.000101,2]
[403850849,1769600455092,10000.01,0.000101,2]
[403850850,1769600455114,10000.01,0.000101,2]
[403850851,1769600455136,5551.83804495,0.000101,2]
[403850852,1769600510441,200.0,0.000148,5]
[403850853,1769600512574,400.0,0.000149,5]
[403850854,1769600603637,4448.17195505,0.00011507,2]
[403850855,1769600603660,3979.40804495,0.00011507,2]
[403850856,1769600625127,179.14,0.000155,3]
[403850857,1769600625761,179.14,0.000141,2]
[403850858,1769600821389,1100.0,0.000137,5]
[403850859,1769600823365,2300.0,0.000138,5]
[403850860,1769600825507,3400.0,0.000139,5]
[403850861,1769600880083,1000.0,0.00013873,2]
[403850862,1769600971413,-2500.0,0.00014338,2]
[403850863,1769600971433,-500.0,0.00014369,2]
[403850864,1769600971453,-641.65424881,0.00014399,2]
[403850865,1769600971475,-494.76,0.000144,2]
[403850866,1769600971494,-1167.48069719,0.00014411,2]
[403850867,1769600985321,1019.77,0.000148,3]
[403850871,1769601024836,913.1644085,0.00013047,2]
[403850872,1769601025892,2409.85532171,0.00013047,2]
[403850882,1769601031654,-453.0,0.000143,2]
[403850883,1769601031666,-47.0,0.000143,2]
[403850884,1769601031675,-487.31893696,0.00014411,2]
[403850885,1769601031685,-1397.11698367,0.00014422,2]
[403850886,1769601031708,-397.33497739,0.00014422,2]
[403850887,1769601031762,-347.89803894,0.00014422,2]
[403850888,1769601031773,-300.0,0.00014426,2]
[403850889,1769601031782,-1200.0,0.00014426,2]
[403850890,1769601031791,-275.0,0.00014427,2]
[403850891,1769601031800,-500.0,0.00014427,2]
[403850892,1769601031810,-500.0,0.00014427,2]
[403850893,1769601031818,-500.0,0.00014427,2]
[403850894,1769601031827,-171.9509687,0.00014427,2]
[403850895,1769601031838,-328.0490313,0.00014427,2]
[403850896,1769601031847,-500.0,0.00014427,2]
[403850897,1769601031857,-186.27026456,0.00014427,2]
[403850898,1769601031874,-313.72973544,0.00014427,2]
[403850899,1769601031883,-500.0,0.00014427,2]
[403850900,1769601031892,-500.0,0.00014427,2]
[403850901,1769601031901,-500.0,0.00014427,2]
[403850902,1769601031911,-500.0,0.00014427,2]
[403850903,1769601031921,-500.0,0.00014427,2]
[403850905,1769601031929,-500.0,0.00014427,2]
[403850906,1769601031938,-500.0,0.00014427,2]
[403850908,1769601031947,-500.0,0.00014427,2]
[403850910,1769601031956,-500.0,0.00014427,2]
[403850912,1769601031966,-500.0,0.00014427,2]
[403850914,1769601031975,-500.0,0.00014427,2]
[403850916,1769601031984,-500.0,0.00014427,2]
[403850918,1769601031993,-500.0,0.00014427,2]
[403850920,1769601032003,-500.0,0.00014427,2]
[403850923,1769601032012,-500.0,0.00014427,2]
[403850926,1769601032021,-500.0,0.00014427,2]
[403850929,1769601032031,-500.0,0.00014427,2]
[403850932,1769601032040,-500.0,0.00014427,2]
[403850935,1769601032049,-500.0,0.00014427,2]
[403850938,1769601032058,-500.0,0.00014427,2]
[403850941,1769601032067,-500.0,0.00014427,2]
[403850944,1769601032075,-500.0,0.00014427,2]
[403850947,1769601032085,-500.0,0.00014427,2]
[403850950,1769601032096,-500.0,0.00014427,2]
[403850952,1769601032105,-500.0,0.00014427,2]
[403850954,1769601032114,-500.0,0.00014427,2]
[403850956,1769601032124,-500.0,0.00014427,2]
[403850957,1769601032133,-500.0,0.00014427,2]
[403850958,1769601032142,-500.0,0.00014427,2]
[403850959,1769601032151,-500.0,0.00014427,2]
[403850960,1769601032160,-500.0,0.00014427,2]
[403850961,1769601032169,-500.0,0.00014427,2]
[403850962,1769601032178,-500.0,0.00014427,2]
[403850963,1769601032187,-500.0,0.00014427,2]
[403850964,1769601032197,-500.0,0.00014427,2]
[403850965,1769601032205,-500.0,0.00014427,2]
[403850966,1769601032214,-500.0,0.00014427,2]
[403850967,1769601032224,-500.0,0.00014427,2]
[403850968,1769601032234,-500.0,0.00014427,2]
[403850969,1769601032244,-500.0,0.00014427,2]
[403850970,1769601032254,-500.0,0.00014427,2]
[403850971,1769601032264,-500.0,0.00014427,2]
[403850972,1769601032274,-500.0,0.00014427,2]
[403850973,1769601032283,-500.0,0.00014427,2]
[403850974,1769601032294,-500.0,0.00014427,2]
[403850975,1769601032305,-500.0,0.00014427,2]
[403850976,1769601032315,-500.0,0.00014427,2]
[403850977,1769601032324,-500.0,0.00014427,2]
[403850978,1769601032335,-500.0,0.00014427,2]
[403850979,1769601032345,-500.0,0.00014427,2]
[403850980,1769601032355,-500.0,0.00014427,2]
[403850981,1769601032366,-422.12648635,0.00014427,2]
[403850982,1769601032377,-500.0,0.00014427,2]
[403850983,1769601032386,-500.0,0.00014427,2]
[403850984,1769601032396,-500.0,0.00014427,2]
[403850985,1769601032405,-500.0,0.00014427,2]
[403850986,1769601032414,-500.0,0.00014427,2]
[403850987,1769601032423,-500.0,0.00014427,2]
[403850988,1769601032432,-500.0,0.00014427,2]
[403850989,1769601032442,-500.0,0.00014427,2]
[403850990,1769601032452,-500.0,0.00014427,2]
[403850991,1769601032460,-500.0,0.00014427,2]
[403850992,1769601032469,-500.0,0.00014427,2]
[403850993,1769601032478,-500.0,0.00014427,2]
[403850994,1769601032487,-500.0,0.00014427,2]
[403850995,1769601032496,-500.0,0.00014427,2]
[403850996,1769601032505,-500.0,0.00014427,2]
[403850997,1769601032513,-500.0,0.00014427,2]
[403850998,1769601032522,-500.0,0.00014427,2]
[403850999,1769601032531,-500.0,0.00014427,2]
[403851000,1769601032541,-500.0,0.00014427,2]
[403851001,1769601032551,-500.0,0.00014427,2]
[403851002,1769601032561,-200.0,0.00014427,2]
[403851003,1769601032570,-500.0,0.00014427,2]
[403851004,1769601032582,-500.0,0.00014427,2]
[403851005,1769601032591,-500.0,0.00014427,2]
[403851006,1769601032600,-1120.47,0.00014427,2]
[403851007,1769601032609,-500.0,0.00014427,2]
[403851008,1769601032618,-270.73499058,0.00014428,2]
[403851009,1769601032629,-10613.62838725,0.00014428,2]
[403851010,1769601032637,-4930.23785898,0.00014428,2]
[403851011,1769601032646,-184.1741511,0.00014428,2]
[403851012,1769601032655,-151.0,0.00014435,2]
[403851013,1769601032664,-150.0,0.00014437,2]
[403851014,1769601032675,-440.73092719,0.00014437,2]
[403851015,1769601032685,-202.66962185,0.00014437,2]
[403851016,1769601032696,-273.785062,0.00014437,2]
[403851017,1769601032706,-500.0,0.00014437,2]
[403851018,1769601032715,-500.0,0.00014437,2]
[403851019,1769601032725,-602.94772963,0.00014437,2]
[403851020,1769601032734,-3467.8827,0.00014438,2]
[403851021,1769601032746,-164744.77793577,0.00014438,2]
[403851022,1769601033742,-37134.41443038,0.00014438,2]
[403851023,1769601033754,-15059.26101327,0.00014438,2]
[403851024,1769601033765,-87606.23873551,0.00014438,2]
[403851025,1769601033776,-1254.41808677,0.00014438,2]
[403851026,1769601033788,-44010.7815,0.00014438,2]
[403851028,1769601037775,-1277.0,0.00014429,2]
[403851029,1769601037787,-3619.89584989,0.00014429,2]
[403851030,1769601037827,-904.82,0.00014429,2]
[403851031,1769601037882,-5667.47982897,0.00014429,2]
[403851032,1769601037891,-11305.4606007,0.00014438,2]
[403851033,1769601037938,-703721.43597093,0.00014438,2]
[403851034,1769601037988,-157171.75694508,0.00014438,2]
[403851037,1769601038000,-2259.8128437,0.00014438,2]
[403851039,1769601038012,-999.0,0.00014438,2]
[403851218,1769601039933,-29545.60862359,0.00014438,2]
[403851220,1769601039945,-545187.0333143,0.00014438,2]
[403851222,1769601039955,-1500.0,0.00014529,2]
[403851224,1769601039965,-200.0,0.0001453,2]
[403851226,1769601039974,-500.0,0.0001453,2]
[403851228,1769601039983,-500.0,0.0001453,2]
[403851230,1769601039992,-500.0,0.0001453,2]
[403851232,1769601040001,-500.0,0.0001453,2]
[403851234,1769601040010,-500.0,0.0001453,2]
[403851236,1769601040019,-500.0,0.0001453,2]
[403851238,1769601040029,-500.0,0.0001453,2]
[403851240,1769601040038,-500.0,0.0001453,2]
[403851242,1769601040047,-500.0,0.0001453,2]
[403851244,1769601040056,-500.0,0.0001453,2]
[403851246,1769601040066,-500.0,0.0001453,2]
[403851248,1769601040075,-500.0,0.0001453,2]
[403851250,1769601040084,-500.0,0.0001453,2]
[403851252,1769601040094,-500.0,0.0001453,2]
[403851254,1769601040103,-500.0,0.0001453,2]
[403851256,1769601040112,-500.0,0.0001453,2]
[403851258,1769601040121,-500.0,0.0001453,2]
[403851260,1769601040131,-646.38066018,0.0001453,2]
[403851262,1769601040141,-151.0,0.0001453,2]
[403851264,1769601040156,-151.0,0.0001453,2]
[403851266,1769601040166,-151.0,0.0001453,2]
[403851268,1769601040175,-500.0,0.0001453,2]
[403851270,1769601040184,-151.0,0.0001453,2]
[403851272,1769601040193,-151.0,0.0001453,2]
[403851274,1769601040203,-151.0,0.0001453,2]
[403851276,1769601040212,-151.0,0.0001453,2]
[403851278,1769601040221,-151.0,0.0001453,2]
[403851280,1769601040231,-151.0,0.0001453,2]
[403851282,1769601040240,-151.0,0.0001453,2]
[403851284,1769601040249,-151.0,0.0001453,2]
[403851286,1769601040259,-151.0,0.00014535,2]
[403851288,1769601040269,-370.85271242,0.00014537,2]
[403851290,1769601040279,-141596.45774329,0.00014538,2]
[403851292,1769601040288,-4251.27043678,0.00014547,2]
[403851295,1769601040297,-6359.64632164,0.00014547,2]
[403851297,1769601040307,-8604.8226,0.00014547,2]
[403851299,1769601040317,-1120.47,0.00014701,2]
[403851300,1769601040326,-500.0,0.00014701,2]
[403851302,1769601040335,-792.72,0.00014796,2]
[403851304,1769601040345,-1000.0,0.000148,2]
[403851306,1769601040354,-10613.62838722,0.00014814,2]
[403851309,1769601040363,-33257.5075,0.00014863,2]
[403851311,1769601040373,-150.0,0.00014875,2]
[403851313,1769601040385,-150.0,0.00014875,2]
[403851315,1769601040394,-150.0,0.00014875,2]
[403851317,1769601040404,-150.0,0.00014875,2]
[403851319,1769601040413,-150.0,0.00014875,2]
[403851321,1769601040423,-150.0,0.00014875,2]
[403851322,1769601040432,-150.0,0.00014875,2]
[403851325,1769601040442,-150.0,0.00014875,2]
[403851327,1769601040451,-150.0,0.00014875,2]
[403851329,1769601040461,-150.0,0.00014875,2]
[403851331,1769601040471,-741.70542484,0.00014899,2]
[403851333,1769601040480,-1000.0,0.00014899,2]
[403851335,1769601040489,-150.0,0.0001493,2]
[403851337,1769601040498,-150.0,0.0001493,2]
[403851339,1769601040507,-150.0,0.0001493,2]
[403851341,1769601040516,-150.0,0.0001493,2]
[403851343,1769601040525,-150.0,0.0001493,2]
[403851345,1769601040534,-150.0,0.0001493,2]
[403851347,1769601040543,-150.0,0.0001493,2]
[403851349,1769601040552,-150.0,0.0001493,2]
[403851351,1769601040561,-150.0,0.00014953,2]
[403851353,1769601040570,-500.0,0.00014953,2]
[403851355,1769601040579,-200.0,0.00014953,2]
[403851357,1769601040587,-1120.47,0.00014975,2]
[403851359,1769601040596,-500.0,0.00014975,2]
[403851361,1769601040605,-150.0,0.00014985,2]
[403851363,1769601040614,-150.0,0.00014985,2]
[403851365,1769601040623,-150.0,0.00014985,2]
[403851367,1769601040634,-150.0,0.00014985,2]
[403851369,1769601040643,-200.0,0.00014985,2]
[403851371,1769601040652,-200.0,0.00014985,2]